fUSD/lending_fUSD_20240523
["ID","MTS","AMOUNT","RATE_DAILY","PERIOD"]
[327773509,1716471834845,389.64,0.00019733,2]
[327773510,1716471835017,389.64,0.00019738,2]
[327773511,1716471835451,389.64,0.00019743,2]
[327773512,1716471835717,389.64,0.00019748,2]
[327773513,1716471835932,389.64,0.00019754,2]
[327773514,1716471847085,490.4,0.00017737,2]
[327773515,1716471867848,168.406527,0.00019901,2]
[327773516,1716471868958,1028.63,0.00019281,2]
[327773517,1716471869220,1028.63,0.00019422,2]
[327773518,1716471869663,1028.63,0.00019562,2]
[327773519,1716471870114,1028.63,0.00019703,2]
[327773520,1716471870356,1028.63,0.00019844,2]
[327773521,1716471870572,1028.63,0.00019984,2]
[327773523,1716471880480,1263.6100219,0.0002,2]
[327773524,1716471881082,457.90189811,0.0002,2]
[327773525,1716471883775,265.76,0.00019577,2]
[327773532,1716471890232,6240.79470955,0.0002,2]
[327773537,1716471903332,626.71,0.00019577,2]
[327773538,1716471904013,150.0,0.00019725,2]
[327773539,1716471907594,155.0,0.0002,2]
[327773540,1716471912771,155.0,0.0002,2]
[327773541,1716471913839,5187.2126629,0.0002,2]
[327773543,1716471917103,250.0,0.00019554,2]
[327773544,1716471917631,1000.0,0.00019999,2]
[327773545,1716471920913,837.846,0.000193,2]
[327773546,1716471923390,151.0,0.00019945,3]
[327773547,1716471924660,1773.97556298,0.0002,2]
[327773548,1716471930221,862.47163439,0.0002,2]
[327773549,1716471935139,-490.4,0.00020001,2]
[327773550,1716471935159,-158.6489964,0.00020022,2]
[327773551,1716471947097,170.270971,0.00019726,2]
[327773552,1716471950955,1263.6100219,0.0002,2]
[327773553,1716471960419,457.90189811,0.0002,2]
[327773554,1716471960642,611.252,0.00019302,2]
[327773555,1716471960893,6240.79470955,0.0002,2]
[327773556,1716471962941,159.45,0.00027068,30]
[327773557,1716471992315,5187.2126629,0.0002,2]
[327773558,1716472000864,862.47163439,0.0002,2]
[327773561,1716472031460,1263.6100219,0.0002,2]
[327773562,1716472033076,457.90189811,0.0002,2]
[327773563,1716472041443,6240.79470955,0.0002,2]
[327773564,1716472066499,2150.0,0.00019922,2]
[327773566,1716472076430,1000.0,0.00019604,2]
[327773570,1716472097999,1263.6100219,0.0002,2]
[327773571,1716472105899,6240.79470955,0.0002,2]
[327773576,1716472112584,457.90189811,0.0002,2]
[327773578,1716472131886,862.47163439,0.0002,2]
[327773579,1716472133323,5187.2126629,0.0002,2]
[327773580,1716472196384,862.47163439,0.0002,2]
[327773581,1716472199752,365.52068094,0.00017259,2]
[327773582,1716472202925,3881.95677998,0.000192,2]
[327773583,1716472211449,235.5,0.00019549,2]
[327773584,1716472213725,325.861,0.00019302,2]
[327773585,1716472221662,153.243874,0.00019726,2]
[327773586,1716472230245,1180.37071106,0.00017259,2]
[327773606,1716472232932,-1000.0,0.0002002,2]
[327773607,1716472232944,-227.50831,0.00020022,2]
[327773608,1716472232956,-841.3510036,0.00020022,2]
[327773609,1716472232968,-975.63444676,0.00020024,2]
[327773610,1716472232984,-24.36555324,0.00020024,2]
[327773611,1716472233002,-510.11659195,0.00020025,2]
[327773612,1716472233025,-340.0,0.00020025,2]
[327773613,1716472233161,-3894.07670073,0.00020025,2]
[327773614,1716472233176,-255.80670732,0.00020025,2]
[327773615,1716472233188,-5524.5374646,0.0002009,2]
[327773616,1716472233218,-2075.4625354,0.0002009,2]
[327773617,1716472233229,-150.0,0.000201,2]
[327773618,1716472233243,-150.0,0.000201,2]
[327773619,1716472233255,-150.0,0.000201,2]
[327773620,1716472233266,-150.0,0.000201,2]
[327773621,1716472233277,-1028.63,0.00020125,2]
[327773622,1716472233289,-167.37,0.00020151,2]
[327773623,1716472233299,-2128.5374646,0.00020155,2]
[327773624,1716472233314,-2871.4625354,0.00020155,2]
[327773626,1716472233325,-232.35756943,0.0002018,2]
[327773629,1716472233336,-3835.94631035,0.0002018,2]
[327773631,1716472233352,-46.01046963,0.0002018,2]
[327773633,1716472233364,-251.949961,0.00020181,2]
[327773635,1716472233375,-1007.799843,0.00020181,2]
[327773637,1716472233386,-265.329176,0.00020181,2]
[327773638,1716472233397,-862.47163439,0.00020199,2]
[327773639,1716472233409,-2000.0,0.000202,2]
[327773640,1716472233422,-200.0,0.000202,2]
[327773641,1716472233435,-1782.0,0.000202,2]
[327773642,1716472233449,-160.0,0.0002026,2]
[327773643,1716472233463,-177.228727,0.00020264,2]
[327773644,1716472233474,-1028.63,0.00020265,2]
[327773645,1716472233486,-5000.0,0.00020285,2]
[327773646,1716472233498,-3996.71727906,0.00020398,2]
[327773647,1716472233509,-781.36204742,0.00020398,2]
[327773648,1716472233521,-529.06734071,0.00020399,2]
[327773649,1716472233534,-205.63826311,0.00020399,2]
[327773650,1716472233547,-481.28691044,0.00020399,2]
[327773651,1716472233559,-206.15397528,0.00020399,5]
[327773652,1716472233570,-75.39806868,0.00020399,2]
[327773653,1716472233584,-207.72675388,0.00020399,2]
[327773654,1716472233596,-3583.91035781,0.000204,2]
[327773655,1716472233612,-442.09522356,0.000204,2]
[327773656,1716472233624,-999.16030425,0.00020401,2]
[327773658,1716472233636,-1622.1073605,0.00020402,2]
[327773660,1716472233650,-377.8926395,0.00020402,2]
[327773662,1716472233663,-200.0,0.00020402,2]
[327773664,1716472233674,-898.1073605,0.00020406,2]
[327773666,1716472233689,-130.5226395,0.00020406,2]
[327773668,1716472233700,-224.0,0.0002041,2]
[327773670,1716472233712,-251.949961,0.0002043,2]
[327773671,1716472233740,-1007.799843,0.0002043,2]
[327773672,1716472233751,-265.329176,0.0002043,2]
[327773673,1716472233763,-260.91,0.00020447,2]
[327773674,1716472233778,-120.45477659,0.00020447,2]
[327773675,1716472233792,-162.67522341,0.00020447,2]
[327773676,1716472233803,-150.0,0.000205,2]
[327773677,1716472233815,-1028.63,0.00020546,2]
[327773678,1716472233826,-153.243874,0.00020548,2]
[327773679,1716472233838,-177.228727,0.00020596,2]
[327773680,1716472233850,-2000.0,0.00020606,2]
[327773681,1716472233862,-200.0,0.00020606,2]
[327773682,1716472233872,-150.0,0.00020619,2]
[327773683,1716472233884,-150.0,0.00020619,2]
[327773685,1716472233895,-150.0,0.00020619,2]
[327773687,1716472233906,-150.0,0.00020619,2]
[327773689,1716472233918,-150.0,0.00020619,2]
[327773691,1716472233930,-150.0,0.00020619,2]
[327773692,1716472233941,-150.0,0.00020619,2]
[327773694,1716472233953,-150.0,0.00020619,2]
[327773696,1716472233964,-150.0,0.00020619,2]
[327773699,1716472233975,-410.39631753,0.00020676,2]
[327773701,1716472233987,-155.27983377,0.00020677,2]
[327773702,1716472234008,-251.949961,0.00020679,2]
[327773703,1716472234021,-1007.799843,0.00020679,2]
[327773704,1716472234033,-265.329176,0.00020679,2]
[327773705,1716472234049,-1028.63,0.00020687,2]
[327773706,1716472234061,-1492.71833892,0.00020738,2]
[327773707,1716472234074,-628.07966112,0.00020738,2]
[327773708,1716472234086,-257.64229094,0.00020739,2]
[327773709,1716472234097,-256.20983874,0.00020739,2]
[327773710,1716472234109,-507.95443,0.0002074,2]
[327773711,1716472234120,-4743.349797,0.0002074,2]
[327773712,1716472234131,-296.679028,0.0002074,2]
[327773713,1716472234144,-244.774196,0.0002074,2]
[327773714,1716472234156,-154.140581,0.0002074,2]
[327773715,1716472234170,-2566.778463,0.0002074,2]
[327773716,1716472234183,-231.210873,0.0002074,2]
[327773717,1716472234195,-10267.113853,0.0002074,2]
[327773718,1716472234206,-456.762674,0.0002074,2]
[327773719,1716472234218,-3602.92301957,0.0002074,2]
[327773720,1716472234239,-4066.95823043,0.0002074,2]
[327773721,1716472234260,-668.761096,0.0002074,2]
[327773722,1716472234273,-181.271546,0.0002074,2]
[327773723,1716472234285,-194.178449,0.0002074,2]
[327773724,1716472234296,-183.91694,0.0002074,2]
[327773725,1716472234307,-156.774295,0.0002074,2]
[327773726,1716472234319,-8819.279332,0.0002074,2]
[327773727,1716472234791,-740.62415749,0.0002074,2]
[327773728,1716472234804,-6440.78978206,0.0002074,2]
[327773729,1716472234819,-2795.09994245,0.0002074,2]
[327773730,1716472234829,-5330.403866,0.0002074,2]
[327773731,1716472234840,-2000.0,0.00020812,2]
[327773732,1716472234851,-200.0,0.00020812,2]
[327773733,1716472234862,-1028.63,0.00020827,2]
[327773734,1716472234872,-300.575,0.00020856,2]
[327773735,1716472234883,-2100.0,0.00020856,2]
[327773736,1716472234894,-1725.6432,0.000209,2]
[327773737,1716472234906,-257.207,0.000209,2]
[327773738,1716472234917,-177.228727,0.00020928,2]
[327773739,1716472234928,-165.830737,0.00020928,2]
[327773740,1716472234939,-167.542,0.00020928,2]
[327773741,1716472234950,-251.949961,0.00020928,2]
[327773742,1716472234962,-1007.799843,0.00020928,2]
[327773743,1716472234973,-265.329176,0.00020928,2]
[327773744,1716472234984,-1028.63,0.00020968,2]
[327773745,1716472235006,-507.95443,0.00020999,2]
[327773746,1716472235018,-4743.349797,0.00020999,2]
[327773747,1716472235028,-296.679028,0.00020999,2]
[327773748,1716472235040,-244.774196,0.00020999,2]
[327773749,1716472235055,-154.140581,0.00020999,2]
[327773750,1716472235067,-2566.778463,0.00020999,2]
[327773751,1716472235079,-231.210873,0.00020999,2]
[327773752,1716472235091,-10267.113853,0.00020999,2]
[327773753,1716472235103,-456.762674,0.00020999,2]
[327773754,1716472235115,-7669.88125,0.00020999,2]
[327773755,1716472235127,-668.761096,0.00020999,2]
[327773756,1716472235138,-194.178449,0.00020999,2]
[327773757,1716472235149,-14849.62268877,0.00020999,2]
[327773759,1716472238380,-3396.04284698,0.00020999,2]
[327773764,1716472238396,-403.25221592,0.00020999,2]
[327773767,1716472238410,-146.87546233,0.00020999,2]
[327773771,1716472238422,-5330.403866,0.00020999,2]
[327773775,1716472238432,-718.07397259,0.00021,2]
[327773778,1716472238444,-10000.0,0.00021,2]
[327773779,1716472238457,-588.75932244,0.00021,2]
[327773780,1716472238469,-2800.0,0.00021,2]
[327773781,1716472238480,-10580.55145594,0.00021,2]
[327773782,1716472238492,-150.0,0.00021,2]
[327773784,1716472238503,-427.3574351,0.00021059,2]
[327773786,1716472238515,-170.98,0.00021073,2]
[327773788,1716472238526,-1005.62024846,0.00021102,2]
[327773790,1716472238537,-1028.63,0.00021108,2]
[327773792,1716472238549,-820.64315547,0.00021157,2]
[327773794,1716472238561,-645.52408306,0.00021157,2]
[327773796,1716472238572,-258.91373272,0.00021157,2]
[327773798,1716472238585,-168.51636117,0.00021157,2]
[327773800,1716472238597,-698.63160408,0.00021157,2]
[327773802,1716472238608,-8144.84439686,0.00021157,2]
[327773804,1716472238620,-2552.64986294,0.00021158,2]
[327773806,1716472238631,-26690.78517044,0.00021159,2]
[327773808,1716472238646,-11940.0,0.00021159,2]
[327773810,1716472238660,-30959.00177831,0.00021159,2]
[327773812,1716472238674,-1705.9042,0.00021159,2]
[327773815,1716472238688,-72458.30285191,0.00021159,2]
[327773816,1716472238702,-651.302952,0.00021159,2]
[327773817,1716472238721,-6799.33512,0.00021159,2]
[327773818,1716472239111,-303.55644977,0.00020899,2]
[327773821,1716472239130,-1489.97635032,0.00020899,2]
[327773822,1716472239146,-1427.61373875,0.00020899,2]
[327773825,1716472239161,-235.37748533,0.00021159,2]
[327773828,1716472239184,-27407.60000001,0.00021159,2]
[327773830,1716472239206,-337.35893564,0.00021159,2]
[327773833,1716472239226,-65815.03150636,0.00021159,2]
[327773834,1716472239448,-2984.96849363,0.00021159,2]
[327773836,1716472239467,-5774.10880637,0.00021159,2]
[327773839,1716472239483,-1489.06169321,0.00021159,2]
[327773841,1716472239502,-31315.9001704,0.00021159,2]
[327773844,1716472239523,-397.271855,0.00021159,2]
[327773846,1716472239540,-269.20948518,0.00021159,2]
[327773848,1716472239563,-943.45999997,0.00021159,2]
[327773851,1716472239583,-2618.94074257,0.00021159,2]
[327773853,1716472239603,-988.04664125,0.00021159,2]
[327773854,1716472239623,-1575.91413506,0.00021159,2]
[327773855,1716472239641,-34009.99999998,0.00021159,2]
[327773856,1716472239663,-514.47999998,0.00021159,2]
[327773857,1716472239682,-3795.7281397,0.00021159,2]
[327773858,1716472239702,-95232.40898149,0.00021159,2]
[327773884,1716472242650,-16864.04245621,0.00021159,2]
[327773885,1716472242662,-20647.1257,0.00021159,2]
[327773886,1716472242674,-1028.63,0.00021249,2]
[327773887,1716472242686,-194.178449,0.00021259,2]
[327773888,1716472242697,-776.713797,0.00021259,2]
[327773889,1716472242708,-733.89129,0.00021259,2]
[327773890,1716472242719,-507.95443,0.00021259,2]
[327773891,1716472242730,-4743.349797,0.00021259,2]
[327773892,1716472242741,-296.679028,0.00021259,2]
[327773893,1716472242755,-244.774196,0.00021259,2]
[327773894,1716472242769,-154.140581,0.00021259,2]
[327773895,1716472242781,-2566.778463,0.00021259,2]
[327773896,1716472242793,-231.210873,0.00021259,2]
[327773897,1716472242806,-10267.113853,0.00021259,2]
[327773898,1716472242819,-456.762674,0.00021259,2]
[327773899,1716472242833,-668.761096,0.00021259,2]
[327773900,1716472242846,-7669.88125,0.00021259,2]
[327773901,1716472242859,-194.178449,0.00021259,2]
[327773902,1716472242872,-18795.793214,0.00021259,2]
[327773903,1716472242885,-5330.403866,0.00021259,2]
[327773904,1716472242897,-194.52,0.00021295,2]
[327773905,1716472242909,-153.243874,0.0002137,2]
[327773906,1716472242921,-622.14,0.00021386,2]
[327773907,1716472242933,-1028.63,0.0002139,2]
[327773915,1716472242945,-152.34,0.00021441,2]
[327773916,1716472243333,-150.0,0.00021441,2]
[327773923,1716472243357,-150.0,0.00021441,2]
[327773929,1716472243369,-150.0,0.00021441,2]
[327773933,1716472243380,-292.21,0.00021441,2]
[327773938,1716472243390,-163.58,0.00021441,2]
[327773942,1716472243400,-150.0,0.00021441,2]
[327773944,1716472243411,-163.58,0.00021441,2]
[327773948,1716472243421,-150.0,0.00021441,2]
[327773951,1716472243431,-352.06,0.00021441,2]
[327773953,1716472243441,-163.58,0.00021441,2]
[327773955,1716472243452,-420.83,0.00021441,2]
[327773956,1716472243463,-352.06,0.00021441,2]
[327773957,1716472243473,-421.02,0.00021441,2]
[327773958,1716472243484,-421.02,0.00021441,2]
[327773963,1716472243499,-327.16,0.00021441,2]
[327773967,1716472243514,-704.12,0.00021441,2]
[327773972,1716472243547,-326.29,0.00021441,2]
[327773977,1716472243560,-421.02,0.00021441,2]
[327773980,1716472243572,-421.02,0.00021441,2]
[327773982,1716472243582,-352.06,0.00021441,2]
[327773984,1716472243593,-417.87,0.00021441,2]
[327773986,1716472243604,-427.35743503,0.00021465,2]
[327773988,1716472243615,-150.0,0.000215,3]
[327773990,1716472243627,-150.86,0.00021508,2]
[327773992,1716472243639,-194.178449,0.00021518,2]
[327773993,1716472243651,-776.713797,0.00021518,2]
[327773994,1716472243663,-733.89129,0.00021518,2]
[327773995,1716472243674,-507.95443,0.00021518,2]
[327773996,1716472243685,-4743.349797,0.00021518,2]
[327773997,1716472243697,-296.679028,0.00021518,2]
[327773998,1716472243709,-244.774196,0.00021518,2]
[327773999,1716472243721,-154.140581,0.00021518,2]
[327774000,1716472243733,-2566.778463,0.00021518,2]
[327774001,1716472243746,-231.210873,0.00021518,2]
[327774002,1716472243759,-456.762674,0.00021518,2]
[327774003,1716472243771,-10267.113853,0.00021518,2]
[327774004,1716472243782,-7669.88125,0.00021518,2]
[327774005,1716472243794,-668.761096,0.00021518,2]
[327774006,1716472243805,-194.178449,0.00021518,2]
[327774007,1716472243817,-18795.793214,0.00021518,2]
[327774008,1716472243829,-5330.403866,0.00021518,2]
[327774009,1716472243840,-300.881555,0.00021518,2]
[327774010,1716472243850,-151.0,0.00021518,2]
[327774012,1716472243868,-1028.63,0.0002153,2]
[327774014,1716472243880,-232.82083714,0.000216,2]
[327774016,1716472243895,-19394.74993277,0.000216,2]
[327774018,1716472243906,-288.18130188,0.00021614,2]
[327774020,1716472243918,-1028.63,0.00021671,2]
[327774022,1716472243929,-1000.0,0.00021677,2]
[327774024,1716472243940,-464.0,0.0002168,2]
[327774026,1716472243951,-224.0,0.0002168,2]
[327774028,1716472243963,-194.178449,0.00021777,2]
[327774030,1716472243975,-776.713797,0.00021777,2]
[327774032,1716472243986,-733.89129,0.00021777,2]
[327774033,1716472244004,-507.95443,0.00021777,2]
[327774034,1716472244016,-4743.349797,0.00021777,2]
[327774035,1716472244050,-296.679028,0.00021777,2]
[327774036,1716472244061,-244.774196,0.00021777,2]
[327774037,1716472244079,-154.140581,0.00021777,2]
[327774038,1716472244092,-2566.778463,0.00021777,2]
[327774039,1716472244104,-231.210873,0.00021777,2]
[327774040,1716472244115,-456.762674,0.00021777,2]
[327774041,1716472244126,-10267.113853,0.00021777,2]
[327774042,1716472244137,-7669.88125,0.00021777,2]
[327774043,1716472244149,-668.761096,0.00021777,2]
[327774044,1716472244160,-194.178449,0.00021777,2]
[327774045,1716472244171,-2273.29396424,0.00021777,2]
[327774046,1716472244185,-2476.83312991,0.00021777,2]
[327774047,1716472244199,-14045.66611985,0.00021777,2]
[327774048,1716472244210,-2125.93695131,0.00021777,2]
[327774049,1716472244224,-3204.46691469,0.00021777,2]
[327774050,1716472244235,-183.91694,0.00021777,2]
[327774051,1716472244247,-165.288313,0.00021777,2]
[327774052,1716472244258,-156.774295,0.00021777,2]
[327774054,1716472244269,-1028.63,0.00021811,2]
[327774056,1716472244280,-427.35743503,0.00021871,2]
[327774058,1716472244291,-200.0,0.000219,2]
[327774060,1716472244302,-12999.74325058,0.000219,2]
[327774062,1716472244313,-1000.0,0.000219,2]
[327774064,1716472244325,-933.72,0.00021918,2]
[327774066,1716472244336,-242.55,0.00021918,2]
[327774068,1716472244347,-1194.0,0.00021918,2]
[327774070,1716472244358,-2000.0,0.00021918,2]
[327774071,1716472244368,-1028.63,0.00021952,2]
[327774072,1716472244381,-500.0,0.00022,2]
[327774073,1716472244391,-17575.71069401,0.00022,2]
[327774074,1716472244402,-155.0,0.00022,2]
[327774075,1716472244412,-1000.13275844,0.00022,2]
[327774076,1716472244422,-150.0,0.00022,3]
[327774077,1716472244433,-626.71,0.00022025,2]
[327774078,1716472244443,-155.07639621,0.00022054,2]
[327774079,1716472244453,-207.39020183,0.00022057,2]
[327774080,1716472244463,-254.91232981,0.00022076,2]
[327774081,1716472244473,-150.87239783,0.00022089,2]
[327774082,1716472244484,-207.39020183,0.00022094,2]
[327774083,1716472244495,-150.87239783,0.00022111,2]
[327774084,1716472244505,-166.66666666,0.00022127,2]
[327774085,1716472244515,-152.73750917,0.00022165,2]
[327774087,1716472244526,-165.35447755,0.00022167,2]
[327774089,1716472244536,-155.08702743,0.00022189,2]
[327774091,1716472244548,-153.243874,0.00022192,2]
[327774094,1716472244576,-1845.23049799,0.00022199,2]
[327774096,1716472244587,-851.00616603,0.00022215,2]
[327774099,1716472244598,-300.0,0.0002226,2]
[327774102,1716472244610,-162.72,0.0002226,2]
[327774106,1716472244621,-152.73750917,0.00022263,2]
[327774111,1716472244631,-490.4,0.00022265,2]
[327774113,1716472244641,-591.0,0.00022276,2]
[327774116,1716472244652,-427.35743503,0.00022277,2]
[327774118,1716472244663,-165.35447755,0.00022277,2]
[327774120,1716472244673,-169.00998555,0.00022288,2]
[327774122,1716472244683,-177.0,0.00022298,2]
[327774124,1716472244694,-254.91232981,0.00022301,2]
[327774126,1716472244704,-160.57154211,0.00022335,2]
[327774128,1716472244715,-166.66666667,0.00022372,2]
[327774131,1716472244727,-155.07639621,0.0002238,2]
[327774133,1716472244739,-159.17500527,0.00022391,2]
[327774135,1716472244751,-1845.23049799,0.00022405,2]
[327774137,1716472244762,-160.107484,0.00022411,2]
[327774139,1716472244773,-254.91232981,0.00022424,2]
[327774141,1716472244785,-155.07639621,0.00022427,2]
[327774143,1716472244797,-851.00616603,0.0002243,2]
[327774145,1716472244808,-154.03762695,0.00022432,2]
[327774147,1716472244819,-254.91232981,0.00022447,2]
[327774148,1716472244831,-276.33992346,0.00022459,2]
[327774149,1716472244843,-96.77747894,0.00022476,2]
[327774150,1716472244859,-754.22868709,0.00022476,2]
[327774151,1716472244871,-1336.16781846,0.000225,2]
[327774152,1716472244884,-683.683,0.000225,2]
[327774153,1716472244902,-411.17817651,0.000225,2]
[327774154,1716472244917,-1036.81472277,0.000225,2]
[327774155,1716472244928,-2416.63527723,0.000225,2]
[327774156,1716472244942,-2868.43341692,0.000225,2]
[327774157,1716472244956,-2014.04494925,0.000225,2]
[327774158,1716472244970,-583.79148091,0.000225,2]
[327774159,1716472244985,-11471.1509123,0.000225,2]
[327774160,1716472245008,-2897.03230826,0.000225,2]
[327774161,1716472245023,-4128.63986883,0.000225,2]
[327774163,1716472245038,-3933.36463944,0.000225,2]
[327774165,1716472245054,-874.40717284,0.000225,2]
[327774169,1716472245104,-1378.4782162,0.000225,2]
[327774171,1716472245118,-22557.58811571,0.000225,2]
[327774173,1716472245128,-150.0,0.000225,3]
[327774175,1716472245138,-165.35447755,0.00022511,2]
[327774177,1716472245149,-152.73750917,0.00022513,2]
[327774179,1716472245160,-207.39020183,0.00022514,2]
[327774181,1716472245170,-159.17500527,0.00022536,2]
[327774183,1716472245181,-754.2252665,0.00022548,2]
[327774185,1716472245191,-165.35447755,0.00022592,2]
[327774187,1716472245202,-165.35447755,0.00022619,2]
[327774189,1716472245212,-207.39020183,0.00022641,2]
[327774191,1716472245223,-754.2252665,0.00022646,2]
[327774193,1716472245233,-166.66666667,0.00022655,2]
[327774195,1716472245244,-851.00616603,0.00022659,2]
[327774197,1716472245255,-170.38049411,0.00022674,2]
[327774199,1716472245265,-427.35743503,0.00022682,2]
[327774201,1716472245275,-154.03762695,0.00022689,2]
[327774203,1716472245285,-155.07639621,0.00022701,2]
[327774205,1716472245298,-254.91232981,0.0002271,2]
[327774207,1716472245310,-159.08274938,0.00022716,2]
[327774209,1716472245322,-157.47813498,0.00022777,2]
[327774211,1716472245333,-7500.0,0.00022798,2]
[327774213,1716472245343,-754.2252665,0.00022801,2]
[327774215,1716472245356,-207.39020183,0.00022829,2]
[327774218,1716472245367,-154.03762695,0.0002285,2]
[327774220,1716472245379,-254.91232981,0.00022851,2]
[327774222,1716472245391,-155.07639621,0.00022869,2]
[327774224,1716472245404,-207.39020183,0.0002287,2]
[327774226,1716472245416,-851.00616603,0.00022872,2]
[327774228,1716472245428,-159.17500527,0.00022874,2]
[327774230,1716472245439,-754.2252665,0.00022875,2]
[327774232,1716472245452,-159.17500527,0.00022881,2]
[327774234,1716472245464,-12587.81611909,0.00022889,2]
[327774236,1716472245476,-12587.81611909,0.00022889,2]
[327774238,1716472245488,-12587.81611909,0.00022889,2]
[327774240,1716472245498,-12587.81611909,0.00022889,2]
[327774242,1716472245509,-12587.81611909,0.00022889,2]
[327774244,1716472245520,-15077.39905409,0.0002289,2]
[327774246,1716472245531,-267.159201,0.00022898,7]
[327774248,1716472245542,-151.0,0.00022898,7]
[327774250,1716472245555,-151.0,0.00022898,7]
[327774252,1716472245566,-181.20978,0.00022898,7]
[327774254,1716472245576,-151.0,0.00022898,7]
[327774256,1716472245587,-151.0,0.00022898,7]
[327774258,1716472245609,-158.387174,0.00022898,7]
[327774260,1716472245620,-151.0,0.00022898,7]
[327774262,1716472245630,-152.496338,0.00022898,7]
[327774264,1716472245641,-151.0,0.00022898,7]
[327774266,1716472245651,-152.790756,0.00022898,7]
[327774268,1716472245661,-151.0,0.00022898,7]
[327774270,1716472245672,-151.0,0.00022898,7]
[327774272,1716472245682,-151.0,0.00022898,7]
[327774274,1716472245692,-151.0,0.00022898,7]
[327774276,1716472245703,-151.0,0.00022898,7]
[327774277,1716472245714,-156.203776,0.00022898,7]
[327774279,1716472245723,-151.0,0.00022898,7]
[327774281,1716472245734,-152.385187,0.00022898,7]
[327774283,1716472245744,-151.0,0.00022898,7]
[327774285,1716472245755,-156.750977,0.00022898,7]
[327774287,1716472245767,-156.667542,0.00022898,7]
[327774290,1716472245779,-151.0,0.00022898,7]
[327774292,1716472245791,-151.0,0.00022898,7]
[327774293,1716472245803,-151.0,0.00022898,7]
[327774296,1716472245815,-151.0,0.00022898,7]
[327774298,1716472245826,-151.0,0.00022898,7]
[327774300,1716472245838,-151.0,0.00022898,7]
[327774302,1716472245848,-151.0,0.00022898,7]
[327774304,1716472245859,-180.806109,0.00022898,7]
[327774306,1716472245869,-151.0,0.00022898,7]
[327774307,1716472245882,-151.0,0.00022898,7]
[327774309,1716472245894,-151.0,0.00022898,7]
[327774312,1716472245906,-151.0,0.00022898,7]
[327774314,1716472245921,-218.548527,0.00022898,7]
[327774316,1716472245933,-12587.81611909,0.000229,2]
[327774318,1716472245947,-2048.92,0.000229,2]
[327774320,1716472245958,-39010.0,0.00022904,2]
[327774322,1716472245969,-207.39020183,0.00022921,2]
[327774324,1716472245982,-831.98,0.00022925,2]
[327774326,1716472245996,-881.27,0.00022925,2]
[327774328,1716472246015,-155.07639621,0.0002293,2]
[327774330,1716472246028,-1845.23049799,0.00022939,2]
[327774332,1716472246039,-464.0,0.0002295,2]
[327774334,1716472246053,-224.0,0.0002295,2]
[327774336,1716472246064,-159.08274938,0.00022974,2]
[327774338,1716472246076,-155.07639621,0.00022994,2]
[327774339,1716472246088,-500.0,0.00023,2]
[327774341,1716472246115,-360.00980562,0.00023,2]
[327774343,1716472246127,-2850.0,0.00023,2]
[327774344,1716472246139,-150.0,0.00023,3]
[327774345,1716472246150,-754.2252665,0.00023001,2]
[327774346,1716472246162,-276.33992346,0.00023009,2]
[327774347,1716472246173,-153.243874,0.00023014,2]
[327774348,1716472246184,-276.33992346,0.00023038,2]
[327774350,1716472246196,-10000.0,0.00023041,2]
[327774352,1716472246208,-165.35447755,0.00023067,2]
[327774354,1716472246220,-427.35743503,0.00023088,2]
[327774356,1716472246232,-166.66666667,0.00023107,2]
[327774358,1716472246244,-155.08702743,0.0002311,2]
[327774360,1716472246254,-150.87239783,0.00023123,2]
[327774362,1716472246265,-467.18932794,0.00023125,2]
[327774364,1716472246276,-152.73750917,0.0002313,2]
[327774366,1716472246288,-207.39020183,0.00023147,2]